fUSD/lending_fUSD_20251225
["ID","MTS","AMOUNT","RATE_DAILY","PERIOD"]
[399735922,1766644734676,-332.96193023,0.00010593,2]
[399735923,1766644736824,-241.86774254,0.00010593,2]
[399735924,1766644738511,-174.69389026,0.00010593,2]
[399735925,1766644740410,-478.23400689,0.00010593,2]
[399735927,1766644744893,-170.61170235,0.00010592,2]
[399735928,1766644748996,-129.38829765,0.00010592,2]
[399735929,1766644749019,-74.58104848,0.00010592,2]
[399735930,1766644751548,-225.41895152,0.00010592,2]
[399735931,1766644751572,-74.84580368,0.00010593,2]
[399735933,1766644752983,-287.11792948,0.00010593,2]
[399735944,1766644804477,179.53557822,0.000328,120]
[399735946,1766644822047,-214.8935705,0.00010592,2]
[399735947,1766644825986,-85.1064295,0.00010592,2]
[399735948,1766644826015,-159.8935705,0.00010592,2]
[399735950,1766644842007,-469.89062818,0.00010592,2]
[399735951,1766644844663,-260.92763524,0.00010592,2]
[399735952,1766644846254,-229.00461773,0.00010592,2]
[399735953,1766644848315,-80.28354835,0.00010592,2]
[399735954,1766644848339,-117.90038014,0.00010592,2]
[399735955,1766644851065,-179.07499014,0.00010592,2]
[399735956,1766644855299,-3.02462972,0.00010592,2]
[399735957,1766644855327,-237.0,0.00010593,2]
[399735958,1766644855356,-5.69797978,0.00010593,2]
[399735960,1766644858573,-300.0,0.00010593,2]
[399735961,1766644861510,-343.45562184,0.00010593,2]
[399735964,1766644863672,-352.5492956,0.00010593,2]
[399735965,1766644865731,-219.3492423,0.00010593,2]
[399735966,1766644869532,-248.35426104,0.00010593,2]
[399735967,1766644871045,-321.830218,0.00010593,2]
[399735968,1766644872834,-210.0,0.00010593,2]
[399735969,1766644874865,-224.22421377,0.00010593,2]
[399735970,1766644876707,-411.14805633,0.00010593,2]
[399735971,1766644880177,-541.77264874,0.00010593,2]
[399735972,1766644896968,-359.52573798,0.00010593,2]
[399735973,1766644901377,-313.92690226,0.00010593,2]
[399735974,1766644903003,-336.02366734,0.00010593,2]
[399735975,1766644903687,235.22772183,0.0003287,120]
[399735976,1766644906778,-348.16223032,0.00010593,2]
[399735977,1766644909537,-495.28240572,0.00010593,2]
[399735978,1766644912396,-325.77,0.00010593,2]
[399735979,1766644915165,-384.26459056,0.00010593,2]
[399735980,1766644917885,-532.3115186,0.00010593,2]
[399735981,1766644919994,-250.0,0.00010593,2]
[399735982,1766644921654,-174.23,0.00010592,2]
[399735983,1766644924511,-125.77,0.00010592,2]
[399735984,1766644924540,-126.28235254,0.00010593,2]
[399735985,1766644925850,-234.6643933,0.00010593,2]
[399735986,1766644943539,-163.66145556,0.00010384,2]
[399735987,1766644946708,-227.92800762,0.00010384,2]
[399735988,1766644948376,-296.98881747,0.00010384,2]
[399735989,1766644949826,-911.42171935,0.00010384,2]
[399735990,1766644949873,-8177.1665613,0.00010593,2]
[399735991,1766644956770,-4024.31983782,0.00010593,2]
[399735992,1766644956801,-1951.37032436,0.00010593,2]
[399735993,1766644960779,-275.76325394,0.00010702,2]
[399735994,1766644960813,-4.9531875,0.00010811,2]
[399735995,1766644960846,-3576.9794,0.00010911,2]
[399735996,1766644960917,-2284.61831712,0.00010911,2]
[399736007,1766645044811,-198.00395991,0.00010903,2]
[399736008,1766645044845,-300.0,0.0001091,2]
[399736009,1766645044934,-9004.00208018,0.00010911,2]
[399736010,1766645051975,-10000.01,0.00010911,2]
[399736013,1766645152019,-153.02141532,0.00010339,2]
[399736014,1766645157564,-397.25099534,0.00010339,2]
[399736015,1766645159708,-205.26571113,0.00010339,2]
[399736016,1766645161558,-240.93808068,0.00010339,2]
[399736017,1766645164426,-356.97286239,0.00010339,2]
[399736018,1766645166383,-246.2038689,0.00010339,2]
[399736019,1766645168315,-195.0,0.00010339,2]
[399736020,1766645170044,-359.52578519,0.00010339,2]
[399736021,1766645172877,-400.40356954,0.00010339,2]
[399736022,1766645173930,-263.6110176,0.00010339,2]
[399736023,1766645175424,-1181.65895803,0.00010339,2]
[399736024,1766645177970,-363.7208723,0.00010339,2]
[399736025,1766645181205,-206.21057752,0.00010339,2]
[399736027,1766645212070,-257.1,0.00010175,2]
[399736028,1766645212094,-12.73861556,0.00010339,2]
[399736029,1766645227196,-242.08014146,0.00010187,2]
[399736030,1766645308795,-53.54985854,0.00010187,2]
[399736037,1766645378649,6079.86,0.00010136,2]
[399736039,1766645387304,3813.05028292,0.00010131,2]
[399736040,1766645387330,10000.01,0.00010131,2]
[399736041,1766645387355,4479.93488623,0.00010131,2]
[399736042,1766645387378,4479.93488623,0.00010131,2]
[399736043,1766645387400,202.62994462,0.00010131,2]
[399736044,1766645407034,-1.8176705,0.00010339,2]
[399736045,1766645407071,-222.13856919,0.00010339,2]
[399736046,1766645421983,-12.86143081,0.00010339,2]
[399736047,1766645422012,-147.09642675,0.0001071,2]
[399736050,1766645431472,-380.13715773,0.0001071,2]
[399736051,1766645431483,-527.23358446,0.00010757,2]
[399736052,1766645431494,-527.23358446,0.00010804,2]
[399736053,1766645431503,-300.0,0.00010809,2]
[399736054,1766645431514,-1200.0,0.00010809,2]
[399736055,1766645431525,-500.0,0.0001081,2]
[399736056,1766645431535,-216.19653812,0.0001081,2]
[399736057,1766645431546,-500.0,0.0001081,2]
[399736058,1766645431556,-500.0,0.0001081,2]
[399736059,1766645431567,-218.08519897,0.0001081,2]
[399736060,1766645431577,-560.56650654,0.0001081,2]
[399736061,1766645431587,-200.5323999,0.0001081,2]
[399736062,1766645431598,-500.0,0.0001081,2]
[399736063,1766645431608,-500.0,0.0001081,2]
[399736064,1766645431619,-500.0,0.0001081,2]
[399736065,1766645431629,-440.23857986,0.0001081,2]
[399736066,1766645431639,-500.0,0.0001081,2]
[399736067,1766645431649,-500.0,0.0001081,2]
[399736068,1766645431661,-500.0,0.0001081,2]
[399736069,1766645431671,-500.0,0.0001081,2]
[399736070,1766645431682,-496.47833343,0.0001081,2]
[399736071,1766645431694,-557.49889686,0.0001081,2]
[399736072,1766645431703,-500.0,0.0001081,2]
[399736073,1766645431714,-345.16164028,0.0001081,2]
[399736074,1766645431725,-500.0,0.0001081,2]
[399736076,1766645431736,-500.0,0.0001081,2]
[399736078,1766645431746,-500.0,0.0001081,2]
[399736080,1766645431759,-500.0,0.0001081,2]
[399736082,1766645431769,-500.0,0.0001081,2]
[399736084,1766645431779,-500.0,0.0001081,2]
[399736085,1766645431790,-500.0,0.0001081,2]
[399736087,1766645431800,-500.0,0.0001081,2]
[399736089,1766645431811,-500.0,0.0001081,2]
[399736092,1766645431821,-500.0,0.0001081,2]
[399736094,1766645431830,-158.69026474,0.0001081,2]
[399736096,1766645431840,-151.33757668,0.0001081,2]
[399736098,1766645431850,-500.0,0.0001081,2]
[399736100,1766645431860,-500.0,0.0001081,2]
[399736102,1766645431870,-500.0,0.0001081,2]
[399736103,1766645431879,-500.0,0.0001081,2]
[399736104,1766645431889,-500.0,0.0001081,2]
[399736105,1766645431900,-500.0,0.0001081,2]
[399736106,1766645431910,-500.0,0.0001081,2]
[399736107,1766645431920,-500.0,0.0001081,2]
[399736108,1766645431929,-304.56026753,0.0001081,2]
[399736109,1766645431939,-500.0,0.0001081,2]
[399736110,1766645431948,-500.0,0.0001081,2]
[399736111,1766645431958,-500.0,0.0001081,2]
[399736112,1766645431968,-500.0,0.0001081,2]
[399736113,1766645431978,-500.0,0.0001081,2]
[399736114,1766645431988,-552.96379143,0.0001081,2]
[399736115,1766645431998,-500.0,0.0001081,2]
[399736116,1766645432007,-500.0,0.0001081,2]
[399736117,1766645432017,-189.66162235,0.0001081,2]
[399736118,1766645432027,-150.0528061,0.0001081,2]
[399736119,1766645432037,-500.0,0.0001081,2]
[399736120,1766645432047,-500.0,0.0001081,2]
[399736121,1766645432056,-500.0,0.0001081,2]
[399736122,1766645432066,-150.0,0.0001081,2]
[399736123,1766645432077,-1200.0,0.0001081,2]
[399736124,1766645432089,-150.0,0.0001081,2]
[399736125,1766645432100,-1787.56,0.0001081,2]
[399736126,1766645432110,-70502.94446643,0.00010811,2]
[399736127,1766645432123,-869.56,0.00010811,2]
[399736128,1766645432135,-462.1300956,0.00010811,2]
[399736129,1766645432147,-1075.43,0.00010811,2]
[399736130,1766645432159,-1201.14928736,0.00010811,2]
[399736131,1766645432174,-87234.0,0.00010811,2]
[399736132,1766645432194,-594.39991771,0.00010811,2]
[399736133,1766645432206,-271.414428,0.00010811,2]
[399736134,1766645432218,-815.82400348,0.00010811,2]
[399736135,1766645432230,-1747.5,0.00010811,2]
[399736136,1766645432242,-17484.2,0.00010811,2]
[399736137,1766645432258,-999.0,0.00010811,2]
[399736138,1766645432270,-384.78397968,0.00010811,2]
[399736139,1766645432281,-1749.08827873,0.00010811,2]
[399736140,1766645432292,-1815.05849312,0.00010811,2]
[399736141,1766645437505,-581.5789184,0.00010811,2]
[399736142,1766645437518,-867.39060821,0.00010811,2]
[399736143,1766645437530,-87502.9991355,0.00010811,2]
[399736144,1766645437542,-17534.53256987,0.00010811,2]
[399736145,1766645437630,-9967.42490189,0.00010811,2]
[399736146,1766645437642,-2620.52156577,0.00010811,2]
[399736147,1766645437696,-19984.9284,0.00010811,2]
[399736148,1766645437708,-343.39660202,0.00010811,2]
[399736149,1766645437720,-673390.74434823,0.00010811,2]
[399736150,1766645437731,-2449.8674,0.00010893,2]
[399736151,1766645437741,-1000.0,0.0001091,2]
[399736152,1766645437751,-616.8985,0.00010911,2]
[399736153,1766645437762,-883.0968,0.00010911,2]
[399736154,1766645437772,-2500.0,0.00010911,2]
[399736156,1766645437782,-9351.31,0.00010959,2]
[399736157,1766645437792,-45690.54302685,0.00010993,2]
[399736158,1766645437803,-231.40654288,0.00010993,2]
[399736159,1766645437815,-277.96,0.00011,2]
[399736160,1766645437825,-151.0,0.00011,2]
[399736162,1766645437835,-5314.753,0.00011002,2]
[399736163,1766645437845,-370.957,0.00011002,2]
[399736164,1766645437855,-3168.57,0.00011003,2]
[399736165,1766645437864,-9999.99,0.00011003,2]
[399736166,1766645437875,-299.99,0.00011003,2]
[399736167,1766645437885,-139721.63,0.00011003,2]
[399736169,1766645437895,-309.16,0.00011003,2]
[399736171,1766645437904,-9999.99,0.00011003,2]
[399736172,1766645437914,-9999.99,0.00011003,2]
[399736174,1766645437924,-150.99,0.00011003,2]
[399736176,1766645437934,-8752.24,0.00011003,2]
[399736178,1766645437945,-999.99,0.00011004,2]
[399736180,1766645437955,-150.99,0.00011004,2]
[399736181,1766645437965,-200.0,0.00011004,2]
[399736182,1766645437974,-151.0,0.00011004,2]
[399736183,1766645437984,-151.0,0.00011004,2]
[399736184,1766645437994,-151.0,0.00011004,2]
[399736185,1766645438004,-151.0,0.00011004,2]
[399736186,1766645438014,-151.0,0.00011004,2]
[399736187,1766645438024,-151.0,0.00011004,2]
[399736188,1766645438034,-151.0,0.00011004,2]
[399736189,1766645438045,-151.0,0.00011004,2]
[399736190,1766645438054,-151.0,0.00011004,2]
[399736191,1766645438064,-151.0,0.00011004,2]
[399736192,1766645438075,-151.0,0.00011004,2]
[399736193,1766645438300,-500.0,0.00011004,2]
[399736194,1766645438319,-151.0,0.00011004,2]
[399736195,1766645438330,-151.0,0.00011004,2]
[399736196,1766645438340,-500.0,0.00011004,2]
[399736197,1766645438350,-151.0,0.00011004,2]
[399736198,1766645438360,-151.0,0.00011004,2]
[399736199,1766645438371,-151.0,0.00011004,2]
[399736200,1766645438380,-151.0,0.00011004,2]
[399736201,1766645438390,-500.0,0.00011004,2]
[399736202,1766645438400,-151.0,0.00011004,2]
[399736203,1766645438410,-151.0,0.00011004,2]
[399736204,1766645438420,-500.0,0.00011004,2]
[399736205,1766645438430,-151.0,0.00011004,2]
[399736206,1766645438440,-500.0,0.00011004,2]
[399736207,1766645438450,-151.0,0.00011004,2]
[399736208,1766645438460,-151.0,0.00011004,2]
[399736209,1766645438470,-500.0,0.00011004,2]
[399736210,1766645438480,-151.0,0.00011004,2]
[399736211,1766645438490,-151.0,0.00011004,2]
[399736212,1766645438501,-500.0,0.00011004,2]
[399736213,1766645438512,-151.0,0.00011004,2]
[399736214,1766645438522,-151.0,0.00011004,2]
[399736215,1766645438533,-500.0,0.00011004,2]
[399736216,1766645438542,-151.0,0.00011004,2]
[399736217,1766645438552,-151.0,0.00011004,2]
[399736218,1766645438562,-500.0,0.00011004,2]
[399736219,1766645438572,-500.0,0.00011004,2]
[399736220,1766645438582,-151.0,0.00011004,2]
[399736221,1766645438592,-151.0,0.00011004,2]
[399736222,1766645438602,-500.0,0.00011004,2]
[399736223,1766645438612,-500.0,0.00011004,2]
[399736224,1766645438622,-151.0,0.00011004,2]
[399736225,1766645438632,-500.0,0.00011004,2]
[399736226,1766645438642,-500.0,0.00011004,2]
[399736227,1766645438651,-500.0,0.00011004,2]
[399736228,1766645438662,-500.0,0.00011004,2]
[399736229,1766645438671,-500.0,0.00011004,2]
[399736230,1766645438681,-500.0,0.00011004,2]
[399736231,1766645438695,-200.0,0.00011004,2]
[399736232,1766645438705,-500.0,0.00011004,2]
[399736233,1766645438715,-207.4,0.00011004,2]
[399736234,1766645438725,-500.0,0.00011004,2]
[399736235,1766645438736,-500.0,0.00011004,2]
[399736236,1766645438746,-500.0,0.00011004,2]
[399736237,1766645438756,-500.0,0.00011004,2]
[399736238,1766645438766,-95842.0,0.00011009,2]
[399736239,1766645438776,-499.99,0.00011009,2]
[399736240,1766645438787,-9999.99,0.00011009,2]
[399736241,1766645438798,-9999.99,0.00011009,2]
[399736242,1766645438808,-4999.99,0.00011009,2]
[399736243,1766645438825,-23338.72,0.00011009,2]
[399736244,1766645438836,-13938.24,0.00011009,2]
[399736245,1766645438847,-9999.99,0.00011009,2]
[399736246,1766645438859,-5695.12,0.00011009,2]
[399736247,1766645438870,-9135.11,0.00011009,2]
[399736248,1766645438880,-12614.1,0.00011009,2]
[399736249,1766645438892,-1290.04665757,0.00011011,2]
[399736250,1766645438903,-740.14339318,0.00011011,2]
[399736251,1766645438914,-500.0,0.00011084,2]
[399736252,1766645438925,-1787.56,0.00011084,2]
[399736253,1766645438936,-58303.00077065,0.00011099,2]
[399736254,1766645438946,-1000.0,0.0001111,2]
[399736255,1766645438957,-2857.5192,0.0001111,2]
[399736256,1766645438967,-33508.6748,0.0001111,2]
[399736257,1766645438979,-300.0,0.00011206,2]
[399736258,1766645438989,-250.0,0.00011206,2]
[399736259,1766645439000,-170.97,0.00011332,2]
[399736260,1766645439011,-500.0,0.00011358,2]
[399736261,1766645439021,-1787.56,0.00011358,2]
[399736262,1766645439032,-300.0,0.00011372,2]
[399736263,1766645439042,-193.58299043,0.00011372,2]
[399736264,1766645439053,-300.0,0.00011372,2]
[399736265,1766645439064,-250.0,0.00011372,2]
[399736266,1766645439075,-300.0,0.00011372,2]
[399736267,1766645439085,-340004.48929986,0.00011427,2]
[399736268,1766645439096,-398.62325352,0.00011451,2]
[399736269,1766645439107,-150.0,0.00011552,2]
[399736270,1766645439117,-200.0,0.00011552,2]
[399736271,1766645439128,-200.0,0.00011552,2]
[399736272,1766645439138,-500.0,0.00011552,2]
[399736273,1766645439149,-58303.00077057,0.00011575,2]
[399736274,1766645439160,-507.31246157,0.00011632,2]
[399736275,1766645439176,-1787.56,0.00011632,2]
[399736276,1766645439187,-1600.0,0.00011682,2]
[399736277,1766645439197,-263.8,0.00011781,2]
[399736278,1766645439208,-255.0,0.00011848,2]
[399736279,1766645439219,-420.0,0.0001188,2]
[399736280,1766645439229,-1680.0,0.00011881,2]
[399736281,1766645439240,-1680.0,0.0001189,2]
[399736282,1766645439252,-1787.56,0.00011906,2]
[399736283,1766645439262,-500.0,0.00011968,2]
[399736284,1766645439274,-500.0,0.00011968,2]
[399736285,1766645439285,-500.0,0.00011968,2]
[399736286,1766645439296,-500.0,0.00011968,2]
[399736287,1766645439306,-500.0,0.00011968,2]
[399736288,1766645439316,-500.0,0.00011968,2]
[399736289,1766645439328,-500.0,0.00011968,2]
[399736290,1766645439339,-500.0,0.00011968,2]
[399736291,1766645439350,-500.0,0.00011968,2]
[399736292,1766645439361,-500.0,0.00011968,2]
[399736293,1766645439371,-500.0,0.00011968,2]
[399736294,1766645439382,-500.0,0.00011968,2]
[399736295,1766645439392,-500.0,0.00011968,2]
[399736296,1766645439403,-500.0,0.00011968,2]
[399736297,1766645439413,-500.0,0.00011968,2]
[399736298,1766645439424,-200.0,0.00011968,2]
[399736299,1766645439435,-500.0,0.00011968,2]
[399736300,1766645439445,-207.4,0.00011968,2]
[399736301,1766645439456,-500.0,0.00011968,2]
[399736302,1766645439467,-215.0738,0.00011968,2]
[399736303,1766645439477,-500.0,0.00011968,2]
[399736304,1766645439488,-223.0315306,0.00011968,2]
[399736305,1766645439498,-500.0,0.00011968,2]
[399736306,1766645439508,-231.28369723,0.00011968,2]
[399736307,1766645439519,-500.0,0.00011968,2]
[399736308,1766645439534,-239.84119403,0.00011968,2]
[399736309,1766645439545,-500.0,0.00011968,2]
[399736310,1766645439555,-248.71531821,0.00011968,2]
[399736311,1766645439567,-500.0,0.00011968,2]
[399736312,1766645439577,-257.91778498,0.00011968,2]
[399736313,1766645439588,-267.46074303,0.00011968,2]
[399736314,1766645439598,-277.35679052,0.00011968,2]
[399736315,1766645439609,-250.0,0.00011968,2]
[399736316,1766645439620,-1500.0,0.00011968,2]
[399736317,1766645439630,-250.0,0.00011968,2]
[399736318,1766645439641,-1500.0,0.00011968,2]
[399736319,1766645439651,-250.0,0.00011968,2]
[399736320,1766645439662,-1500.0,0.00011968,2]
[399736321,1766645439672,-250.0,0.00011968,2]
[399736322,1766645439683,-1500.0,0.00011968,2]
[399736323,1766645439696,-250.0,0.00011968,2]
[399736324,1766645439706,-1500.0,0.00011968,2]
[399736325,1766645439716,-250.0,0.00011968,2]
[399736326,1766645439727,-1500.0,0.00011968,2]
[399736327,1766645439739,-597.06,0.00011968,2]
[399736328,1766645439750,-250.0,0.00011968,2]
[399736329,1766645439760,-1255.94193517,0.00011968,2]
[399736330,1766645439770,-250.0,0.00011968,2]
[399736331,1766645439780,-250.0,0.00011968,2]
[399736332,1766645439791,-250.0,0.00011968,2]
[399736333,1766645439802,-250.0,0.00011968,2]
[399736334,1766645439812,-322.6107,0.00011968,2]
[399736335,1766645439823,-250.0,0.00012001,2]
[399736336,1766645439833,-207.4920134,0.00012001,2]
[399736337,1766645439843,-1019.59188667,0.00012047,2]
[399736338,1766645439854,-200.0,0.000121,2]
[399736339,1766645439865,-200.0,0.000121,2]
[399736340,1766645439876,-500.0,0.000121,2]
[399736341,1766645439891,-600.0,0.00012132,2]
[399736342,1766645439901,-600.0,0.00012132,2]
[399736343,1766645439912,-1787.56,0.0001218,2]
[399736344,1766645439923,-21069.10728572,0.00012229,2]
[399736345,1766645439934,-58303.00077057,0.0001224,2]
[399736346,1766645439944,-166.66,0.00012329,2]
[399736347,1766645439955,-166.66,0.00012452,2]
[399736348,1766645439964,-1787.56,0.00012454,2]
[399736349,1766645439975,-170.97,0.00012466,2]
[399736350,1766645439985,-166.66,0.00012575,2]
[399736351,1766645439996,-200.0,0.00012648,2]
[399736352,1766645440008,-200.0,0.00012648,2]
[399736353,1766645440019,-500.0,0.00012648,2]
[399736354,1766645440029,-166.66,0.00012699,2]
[399736355,1766645440040,-1787.56,0.00012728,2]
[399736356,1766645440050,-166.66,0.00012822,2]
[399736357,1766645440060,-58303.00077057,0.00012906,2]
[399736358,1766645440071,-166.66,0.00012945,2]
[399736359,1766645440081,-1600.0,0.0001298,2]
[399736360,1766645440091,-433.0,0.00012983,2]
[399736361,1766645440102,-1787.56,0.00013002,2]
[399736362,1766645440112,-151.0,0.00013056,2]
[399736363,1766645440122,-587.0,0.00013057,2]
[399736364,1766645440132,-2351.0,0.00013059,2]
[399736365,1766645440143,-2351.0,0.00013079,2]
[399736366,1766645440153,-200.0,0.00013196,2]
[399736367,1766645440164,-200.0,0.00013196,2]
[399736368,1766645440174,-500.0,0.00013196,2]
[399736369,1766645440184,-1787.56,0.00013276,2]
[399736371,1766645440195,-302.07,0.00013319,2]
[399736372,1766645440205,-287.61899177,0.00013337,2]
[399736373,1766645440216,-334.5472959,0.00013337,2]
[399736374,1766645440227,-164.06,0.00013424,2]
[399736375,1766645440237,-1787.56,0.0001355,2]
[399736376,1766645440247,-58303.00077057,0.00013572,2]
[399736377,1766645440263,-170.97,0.00013599,2]
[399736378,1766645440273,-250.0,0.00013661,2]
[399736379,1766645440284,-500.0,0.00013698,2]
[399736380,1766645440294,-500.0,0.00013698,2]
[399736381,1766645440304,-500.0,0.00013698,2]
[399736382,1766645440314,-500.0,0.00013698,2]
[399736383,1766645440324,-500.0,0.00013698,2]
[399736384,1766645440334,-500.0,0.00013698,2]
[399736385,1766645440344,-500.0,0.00013698,2]
[399736386,1766645440354,-568.74385845,0.00013698,2]
[399736387,1766645440363,-500.0,0.00013698,2]
[399736388,1766645440376,-500.0,0.00013698,2]
[399736389,1766645440386,-500.0,0.00013698,2]
[399736390,1766645440396,-500.0,0.00013698,2]
[399736391,1766645440406,-695.14,0.00013698,2]
[399736392,1766645440417,-695.14,0.00013698,2]
[399736393,1766645440428,-695.14,0.00013698,2]
[399736394,1766645440439,-695.14,0.00013698,2]
[399736395,1766645440452,-500.0,0.00013698,2]
[399736396,1766645440462,-500.0,0.00013698,2]
[399736397,1766645440472,-500.0,0.00013698,2]
[399736398,1766645440482,-500.0,0.00013698,2]
[399736399,1766645440492,-500.0,0.00013698,2]
[399736400,1766645440501,-500.0,0.00013698,2]
[399736401,1766645440511,-500.0,0.00013698,2]
[399736402,1766645440523,-500.0,0.00013698,2]
[399736403,1766645440544,-500.0,0.00013698,2]
[399736404,1766645440557,-500.93767217,0.00013698,2]
[399736405,1766645440567,-500.0,0.00013698,2]
[399736406,1766645440577,-500.62299513,0.00013698,2]
[399736407,1766645440589,-414.70631063,0.00013698,2]
[399736408,1766645440599,-825.23,0.00013698,2]
[399736409,1766645440609,-500.0,0.00013698,2]
[399736410,1766645440620,-825.23,0.00013698,2]
[399736411,1766645440630,-500.0,0.00013698,2]
[399736412,1766645440640,-825.23,0.00013698,2]
[399736413,1766645440651,-825.23,0.00013698,2]
[399736414,1766645440661,-500.0,0.00013698,2]
[399736415,1766645440671,-500.0,0.00013698,2]
[399736416,1766645440683,-825.23,0.00013698,2]
[399736417,1766645440697,-825.23,0.00013698,2]
[399736418,1766645440708,-500.0,0.00013698,2]
[399736419,1766645440718,-500.0,0.00013698,2]
[399736420,1766645440729,-500.0,0.00013698,2]
[399736421,1766645440739,-500.0,0.00013698,2]
[399736422,1766645440750,-563.0266574,0.00013698,2]
[399736423,1766645440760,-500.0,0.00013698,2]
[399736424,1766645440771,-500.0,0.00013698,2]
[399736425,1766645440780,-500.0,0.00013698,2]
[399736426,1766645440791,-500.0,0.00013698,2]
[399736427,1766645440801,-500.0,0.00013698,2]
[399736428,1766645440811,-500.0,0.00013698,2]
[399736429,1766645440821,-500.0,0.00013698,2]
[399736430,1766645440831,-500.0,0.00013698,2]
[399736431,1766645440840,-500.0,0.00013698,2]
[399736432,1766645440863,-500.0,0.00013698,2]
[399736433,1766645440874,-500.0,0.00013698,2]
[399736434,1766645440885,-500.0,0.00013698,2]
[399736435,1766645440895,-500.0,0.00013698,2]
[399736436,1766645440906,-500.0,0.00013698,2]
[399736437,1766645440916,-500.0,0.00013698,2]
[399736438,1766645440927,-500.0,0.00013698,2]
[399736439,1766645440937,-500.0,0.00013698,2]
[399736440,1766645440947,-500.0,0.00013698,2]
[399736441,1766645440958,-500.0,0.00013698,2]
[399736442,1766645440968,-500.0,0.00013698,2]
[399736443,1766645440978,-500.0,0.00013698,2]
[399736444,1766645440988,-391.24830668,0.00013698,2]
[399736445,1766645441119,-500.0,0.00013698,2]
[399736446,1766645441129,-500.0,0.00013698,2]
[399736447,1766645441140,-500.0,0.00013698,2]
[399736448,1766645441150,-500.0,0.00013698,2]
[399736449,1766645441159,-500.0,0.00013698,2]
[399736450,1766645441175,-500.0,0.00013698,2]
[399736451,1766645441185,-500.0,0.00013698,2]
[399736452,1766645441195,-500.0,0.00013698,2]
[399736453,1766645441205,-500.0,0.00013698,2]
[399736454,1766645441215,-500.0,0.00013698,2]
[399736455,1766645441225,-500.0,0.00013698,2]
[399736456,1766645441236,-500.0,0.00013698,2]
[399736457,1766645441246,-500.0,0.00013698,2]
[399736458,1766645441257,-500.0,0.00013698,2]
[399736459,1766645441267,-521.79,0.00013698,2]
[399736460,1766645441278,-521.79,0.00013698,2]
[399736461,1766645441288,-521.79,0.00013698,2]
[399736462,1766645441298,-521.79,0.00013698,2]
[399736463,1766645441308,-500.0,0.00013698,2]
[399736464,1766645441318,-521.79,0.00013698,2]
[399736465,1766645441327,-500.0,0.00013698,2]
[399736466,1766645441338,-521.79,0.00013698,2]
[399736467,1766645441348,-500.0,0.00013698,2]
[399736468,1766645441358,-521.79,0.00013698,2]
[399736469,1766645441368,-500.0,0.00013698,2]
[399736470,1766645441379,-500.0,0.00013698,2]
[399736471,1766645441388,-500.0,0.00013698,2]
[399736472,1766645441398,-500.0,0.00013698,2]
[399736473,1766645441408,-500.0,0.00013698,2]
[399736474,1766645441418,-500.0,0.00013698,2]
[399736475,1766645441428,-500.0,0.00013698,2]
[399736476,1766645441439,-500.0,0.00013698,2]
[399736477,1766645441448,-500.0,0.00013698,2]
[399736478,1766645441458,-500.0,0.00013698,2]
[399736479,1766645441468,-500.0,0.00013698,2]
[399736480,1766645441478,-500.0,0.00013698,2]
[399736481,1766645441488,-500.0,0.00013698,2]
[399736482,1766645441498,-500.0,0.00013698,2]
[399736483,1766645441508,-595.20438035,0.00013698,2]